[Event "Mitropa Cup Open 2024"]
[Site "Apolda"]
[Date "2024.02.15"]
[Round "1.10"]
[White "Bogner, Sebastian"]
[Black "Ivekovic, Bozidar"]
[Result "1/2-1/2"]
[ECO "E10"]
[WhiteElo "2538"]
[BlackElo "2399"]
[Annotator "TA"]
[PlyCount "92"]
[EventDate "2024.02.15"]
[EventType "team-tourn"]
[EventCountry "GER"]
[SourceTitle "playchess.com"]
[Source "ChessBase"]
[SourceQuality "1"]
[WhiteTeam "Switzerland"]
[BlackTeam "Croatia"]
[WhiteTeamCountry "SUI"]
[BlackTeamCountry "CRO"]
[TimeControl "40/5400+30:1800+30"]

{[%evp 18,92,35,25,73,59,81,37,53,45,63,55,76,84,84,73,106,97,93,99,181,182,181,183,162,132,133,92,103,93,97,109,410,413,420,433,416,435,536,518,925,281,280,282,274,289,297,377,256,94,94,77,77,77,77,76,78,78,78,78,96,88,104,78,78,78,427,29,29,29,78,0,0,0,78,0,0]} 1. d4 {[%emt 0:00:02]} Nf6 {[%emt 0:00:09]} 2. c4 {[%emt 0:00:05]} e6 {[%emt 0:00:06]} 3. Nf3 {[%emt 0:00:21]} c5 {[%emt 0:00:27]} 4. d5 {[%emt 0:00:43]} b5 {[%emt 0:00:05]} 5. dxe6 {[%emt 0:02:35]} fxe6 {[%emt 0:00:25]} 6. cxb5 {[%emt 0:00:11]} d5 {[%emt 0:00:44]} 7. e3 {[%emt 0:01:08]} Bd6 {[%emt 0:04:09]} 8. Be2 {[%emt 0:00:26]} Bb7 {[%emt 0:09:41]} 9. Nbd2 {[%emt 0:05:50]} O-O {[%emt 0:06:20]} 10. O-O {[%emt 0:02:24]} Nbd7 {[%emt 0:03:25]} (10... a6 $11 {was preferrable.}) 11. a4 {[%emt 0:12:18][%cal Ba2a4,Ba4a5][%mdl 32]} Qe7 {[%emt 0:01:58]} 12. a5 {[%emt 0:03:16]} Rad8 {[%emt 0:00:41] White is slightly better.} 13. Qc2 {[%emt 0:01:51]} Ne4 {[%emt 0:06:31]} 14. b3 {[%emt 0:33:37]} Ndf6 {[%emt 0:26:26][%cal Od5d4]} 15. Ra4 {[%emt 0:02:43]} Kh8 {[%emt 0:13:55]} 16. Bb2 {[%emt 0:02:17]} Nxd2 {[%emt 0:01:31]} 17. Nxd2 {[%emt 0:00:41]} e5 {[%emt 0:01:52]} 18. e4 {[%emt 0:05:54] White is more active.} Nxe4 {[%emt 0:00:15]} (18... dxe4 $16 {is a better defense.} 19. a6 Ba8) 19. Nxe4 $18 {[%emt 0:00:33]} dxe4 {[%emt 0:00:04]} 20. Bc1 {[%emt 0:01:12][%cal Bb2c1,Bc1a3,Ba3c5][%mdl 32]} Bc7 {[%emt 0:08:01]} 21. Qc3 Rd4 {[%emt 0:14:15]} 22. Ba3 {[%emt 0:23:23]} Bd6 {[%emt 0:00:00]} 23. Rc4 {[%emt 0:00:00]} Bd5 {[%emt 0:00:00]} 24. Rxc5 {[%emt 0:00:00]} Bxc5 $4 {[%emt 0:00:00][%mdl 8192]} (24... h6 $16 {is tougher.} 25. b4 Qe6) 25. Bxc5 {[%emt 0:00:00]} ({Less strong is} 25. Qxc5 Qxc5 26. Bxc5 Ra8 27. Bxd4 exd4 $18) 25... Rc8 {[%emt 0:00:00] [#]} 26. Qxd4 {[%emt 0:00:00][%mdl 512]} Rxc5 {[%emt 0:00:00]} 27. Qb4 {[%emt 0:00:00]} g6 {[%emt 0:00:00]} 28. Bc4 {[%emt 0:00:00] aiming for Bxd5.} e3 {[%emt 0:00:00]} (28... Bb7 $142 29. a6 Ba8) 29. f3 $2 {[%emt 0:00:00]} ({Don't blunder} 29. Bxd5 $2 exf2+ 30. Kh1 Rc1 $19) (29. fxe3 Be4 30. Rf7) 29... Bxc4 {[%emt 0:02:03]} 30. bxc4 {[%emt 0:00:00][%mdl 4096] Endgame. And now b6 would win. KQR-KQR} Qd6 {[%emt 0:00:06]} 31. Qc3 {[%emt 0:01:59]} e2 {[%emt 0:02:03]} 32. Re1 {[%emt 0:00:18]} Qc7 {[%emt 0:00:02]} 33. Rxe2 $2 {[%emt 0:00:19]} (33. Qb4 $18 {is more deadly. b6 is the strong threat.} Qd6 34. Rxe2 Qd4+ 35. Kf1 (35. Kh1 Qxc4 36. Qxc4 Rxc4 $18) 35... Qd1+ 36. Qe1) 33... Rxb5 $16 {[%emt 0:00:04]} 34. Qa3 {[%emt 0:02:38]} Rc5 {[%emt 0:01:07][%cal Oh8g7]} 35. a6 {[%emt 0:00:13]} Kg8 {[%emt 0:00:22]} 36. Qb3 {[%emt 0:00:20] Strongly threatening Rb2.} Qd6 {[%emt 0:01:08]} 37. Qe3 $1 {[%emt 0:01:03] Hoping for Rd2.} Rxc4 {[%emt 0:00:30]} 38. Qxa7 {[%emt 0:00:27]} Ra4 {[%emt 0:00:33] Wards off Ra2} 39. Rb2 {[%emt 0:00:40] Intending Rb8+ and mate.} Qd4+ {[%emt 0:00:27]} 40. Qxd4 {[%emt 0:00:02]} exd4 {[%emt 0:00:05] KR-KR} 41. Rb8+ {[%emt 0:30:49]} Kf7 $2 {[%emt 0:30:52][%mdl 8192] [#]} (41... Kg7 $16) 42. Rb7+ $2 {[%emt 0:00:00]} (42. Ra8 $1 $18 Kf6 43. Kf1) 42... Ke6 $1 $11 {[%emt 0:00:00]} 43. a7 {[%emt 0:00:00]} h5 {[%emt 0:00:00]} (43... Ra2 $1 $11) 44. h4 {[%emt 0:00:00]} (44. Kf2 $16) 44... Ra2 {[%emt 0:00:00]} 45. Kf1 {[%emt 0:00:00]} d3 {[%emt 0:00:00] [#]} (45... Kd5 $11 {keeps the balance.}) 46. Ke1 {[%emt 0:00:00]} (46. Rb3 $1 $16) 46... Ke5 {[%emt 0:00:00] Weighted Error Value: White=0.46/Black=0.39.  Loses game:     	---       	Black=2      Missed win:     	White=2     	---        Mistake:       	White=3     	Black=4      Inaccurate:     	White=2     	---        OK:         	White=15    	Black=12     Best:        	White=2     	Black=4      Strong:       	White=1     	Black=1      Brilliant:      	White=1     	---} 1/2-1/2

[Event "Mitropa Cup Open 2024"]
[Site "Apolda"]
[Date "2024.02.15"]
[Round "1.11"]
[White "Tomulic, Teo"]
[Black "Baenziger, Fabian"]
[Result "1/2-1/2"]
[ECO "C07"]
[WhiteElo "2386"]
[BlackElo "2414"]
[Annotator "TA"]
[PlyCount "60"]
[EventDate "2024.02.15"]
[EventType "team-tourn"]
[EventCountry "GER"]
[SourceTitle "playchess.com"]
[Source "ChessBase"]
[SourceQuality "1"]
[WhiteTeam "Croatia"]
[BlackTeam "Switzerland"]
[WhiteTeamCountry "CRO"]
[BlackTeamCountry "SUI"]
[TimeControl "40/5400+30:1800+30"]

{[%evp 19,60,25,39,0,6,0,0,0,20,6,25,8,3,14,10,11,16,20,225,0,0,0,14,0,0,-1,0,0,0,0,0,0,0,-13,0,0,0,-6,0,0,0,0,0]} 1. e4 {[%emt 0:00:03]} e6 {[%emt 0:00:14]} 2. d4 {[%emt 0:00:09]} d5 {[%emt 0:00:05]} 3. Nd2 {[%emt 0:00:51]} c5 {[%emt 0:00:31]} 4. exd5 {[%emt 0:00:05]} Qxd5 {[%emt 0:00:06]} 5. Ngf3 {[%emt 0:00:05]} cxd4 {[%emt 0:00:11]} 6. Bc4 {[%emt 0:00:05]} Qd6 {[%emt 0:00:41]} 7. O-O {[%emt 0:00:07]} Nf6 {[%emt 0:00:18]} 8. Nb3 {[%emt 0:00:32]} Nc6 {[%emt 0:00:44]} 9. Nbxd4 {[%emt 0:00:13]} Nxd4 {[%emt 0:00:17]} 10. Nxd4 {[%emt 0:01:00]} Be7 {[%emt 0:00:25]} 11. Be3 {[%emt 0:23:04]} O-O {[%emt 0:04:06]} 12. Qf3 {[%emt 0:03:47]} Qc7 {[%emt 0:03:48]} 13. Bb3 {[%emt 0:02:34]} Bd7 {[%emt 0:07:16]} 14. h3 {[%emt 0:14:57]} Rfd8 {[%emt 0:18:19]} 15. Rfe1 {[%emt 0:02:34]} a5 {[%emt 0:11:47] [#] Hoping for ...a4.} 16. a4 {[%emt 0:03:47]} Bc5 {[%emt 0:00:09]} 17. Rad1 {[%emt 0:15:24]} Qb6 {[%emt 0:06:46]} 18. Qg3 {[%emt 0:11:04]} Be8 $2 {[%emt 0:13:44] [#]} ({Reject} 18... Bxa4 $6 19. Bxa4 Rxd4 (19... Bxd4 $2 {loses.} 20. Rxd4 Rxd4 21. c3 $18) 20. Bxd4 Bxd4 21. c3 $16) (18... Bc6 $11 19. Nxc6 Qxc6) 19. Qe5 $2 {[%emt 0:08:40]} (19. Nxe6 $1 $18 fxe6 20. Bxc5 Qxc5 21. Rxd8 Rxd8 22. Rxe6 Rd1+ 23. Re1+ Rd5 24. Bxd5+ Qxd5 25. Re7) 19... Kh8 {[%emt 0:05:55] The position is equal.} 20. Nf5 {[%emt 0:08:55][%cal Bd4f5,Bf5e3,Be3c4,Bc4d6][%mdl 32]} Bxe3 {[%emt 0:01:24]} 21. Nxe3 {[%emt 0:01:12]} (21. Qxe3 {simplifies} Rxd1 22. Rxd1 Qxe3 23. Nxe3 g6 24. Ra1) 21... Qb4 {[%emt 0:04:23]} 22. Nc4 {[%emt 0:00:45]} Rxd1 {[%emt 0:10:38]} 23. Rxd1 {[%emt 0:00:01]} Bxa4 {[%emt 0:00:07]} 24. Nd6 {[%emt 0:01:52] And now Rd4 would win.} Be8 {[%emt 0:01:04]} 25. Rd4 {[%emt 0:00:11]} Qb6 {[%emt 0:00:07]} 26. Nc4 {[%emt 0:01:00]} Qb4 {[%emt 0:04:56]} 27. Nd6 {[%emt 0:00:24]} Qb6 {[%emt 0:00:05]} 28. Nc4 {[%emt 0:00:14]} Qb4 {[%emt 0:00:17]} 29. Nd6 {[%emt 0:00:43]} Qb6 {[%emt 0:00:07]} 30. Nc4 {[%emt 0:00:32]} Qb4 {[%emt 0:00:10] Weighted Error Value: White=0.18 (very precise) /Black=0.21 (precise) .  Loses game:     	---       	Black=1      Missed win:     	White=1     	---        OK:         	White=10    	Black=9      Best:        	White=1     	---} 1/2-1/2

[Event "Mitropa Cup Open 2024"]
[Site "Apolda"]
[Date "2024.02.15"]
[Round "1.12"]
[White "Fecker, Noah"]
[Black "Novosel, Lovro"]
[Result "1-0"]
[ECO "B90"]
[WhiteElo "2397"]
[BlackElo "2373"]
[Annotator "TA"]
[PlyCount "41"]
[EventDate "2024.02.15"]
[EventType "team-tourn"]
[EventCountry "GER"]
[SourceTitle "playchess.com"]
[Source "ChessBase"]
[SourceQuality "1"]
[WhiteTeam "Switzerland"]
[BlackTeam "Croatia"]
[WhiteTeamCountry "SUI"]
[BlackTeamCountry "CRO"]
[TimeControl "40/5400+30:1800+30"]

{[%evp 11,41,0,0,0,0,0,0,0,30,-4,9,0,26,-32,9,6,15,0,16,29,75,21,68,67,286,318,871,877,902,850,29988,1550]} 1. e4 {[%emt 0:00:03]} c5 {[%emt 0:00:14]} 2. Nf3 {[%emt 0:00:06]} d6 {[%emt 0:00:08]} 3. d4 {[%emt 0:00:09]} cxd4 {[%emt 0:00:06]} 4. Nxd4 {[%emt 0:00:04]} Nf6 {[%emt 0:00:09][%cal Bg8f6,Bf6d7,Bd7c5][%mdl 32]} 5. Nc3 {[%emt 0:00:10]} a6 {[%emt 0:00:06]} 6. Rg1 {[%emt 0:00:31]} b5 {[%emt 0:04:55]} 7. g4 {[%emt 0:00:45]} Bb7 {[%emt 0:00:48][%cal Ob5b4]} 8. Bg2 {[%emt 0:00:44]} e6 {[%emt 0:05:41]} 9. g5 {[%emt 0:04:54] The position is equal.} Nfd7 {[%emt 0:01:01]} 10. Be3 {[%emt 0:06:58]} Nc6 {[%emt 0:03:41]} 11. f4 {[%emt 0:31:07] Prevents Nce5.} Rc8 {[%emt 0:11:38]} 12. Nce2 {[%emt 0:13:51]} (12. Nxc6 $11 Bxc6 13. Qd2) 12... Qc7 {[%emt 0:04:09]} 13. Nxc6 {[%emt 0:01:50]} Bxc6 {[%emt 0:03:04]} 14. Qd2 {[%emt 0:01:45]} Nc5 {[%emt 0:24:16]} 15. Ng3 {[%emt 0:01:52]} Be7 {[%emt 0:07:25]} (15... h6 $11 {should be considered.}) 16. O-O-O {[%emt 0:01:50]} (16. f5 $16) 16... O-O {[%emt 0:07:03]} (16... h6 $1 $11 {is more appropriate.}) 17. f5 $14 {[%emt 0:04:38][%cal Of5f6] Black must now prevent f6!} Qb7 $2 {[%emt 0:06:01] [#] Loses the game.} (17... Rfd8 $14) 18. f6 $1 $18 {[%emt 0:03:49]} gxf6 {[%emt 0:02:29]} (18... Nxe4 19. Bxe4 Bxe4 20. fxe7 Rfe8) 19. gxf6 {[%emt 0:01:38]} Bxf6 {[%emt 0:00:10]} 20. Nh5 {[%emt 0:07:01]} Be7 {[%emt 0:03:50]} 21. Bxc5 {[%emt 0:01:28] Weighted Error Value: White=0.16 (very precise) /Black=0.91.  Loses game:     	---       	Black=1      Mistake:       	White=2     	Black=3      Inaccurate:     	White=1     	Black=2      OK:         	White=5     	Black=3      Strong:       	White=1     	---} (21. Bh3+ $142 Kh8 22. Bd4+ e5 23. Qh6 (23. Bxc8 Qxc8 24. Bxc5 Qe6 $18) 23... Ne6 24. Bxe6 Bg5+ 25. Rxg5 (25. Qxg5 f6 $18) 25... fxe6 26. Rxe5 (26. Rg7 Bxe4 27. Bc3 Rf7 28. Rxf7 Qxf7 29. Rxd6 Qe7 30. Bxe5+ Kg8 31. Nf6+ Kf7)) 1-0

[Event "Mitropa Cup Open 2024"]
[Site "Apolda"]
[Date "2024.02.15"]
[Round "1.13"]
[White "Girel, Joseph"]
[Black "Baidetskyi, Valentin"]
[Result "1/2-1/2"]
[ECO "E73"]
[WhiteElo "2492"]
[BlackElo "2499"]
[Annotator "TA"]
[PlyCount "59"]
[EventDate "2024.02.15"]
[EventType "team-tourn"]
[EventCountry "GER"]
[SourceTitle "playchess.com"]
[Source "ChessBase"]
[SourceQuality "1"]
[WhiteTeam "France"]
[BlackTeam "Austria"]
[WhiteTeamCountry "FRA"]
[BlackTeamCountry "AUT"]
[TimeControl "40/5400+30:1800+30"]

{[%evp 13,59,49,49,46,54,52,65,62,72,61,70,36,28,28,23,21,28,0,0,0,0,0,0,0,0,0,0,0,0,0,0,0,0,0,0,0,0,0,0,0,0,0,0,0,0,0,0,0]} 1. d4 {[%emt 0:00:17]} Nf6 {[%emt 0:00:14]} 2. c4 {[%emt 0:00:21]} g6 {[%emt 0:00:03]} 3. Nc3 {[%emt 0:00:26]} Bg7 {[%emt 0:00:03]} 4. e4 {[%emt 0:00:30]} d6 {[%emt 0:00:04]} 5. Be2 {[%emt 0:02:28]} O-O {[%emt 0:01:56]} 6. Be3 {[%emt 0:00:19]} e5 {[%emt 0:00:05]} 7. d5 {[%emt 0:00:36]} Na6 {[%emt 0:00:01]} 8. g4 {[%emt 0:00:56][%cal Bg2g4,Bg4g5][%mdl 32]} Nc5 {[%emt 0:00:02]} 9. f3 {[%emt 0:00:24]} h5 {[%emt 0:00:05]} 10. g5 {[%emt 0:01:06] White is slightly better.} Nh7 {[%emt 0:00:02]} 11. h4 {[%emt 0:01:06]} f6 {[%emt 0:00:06]} 12. Qd2 {[%emt 0:01:10]} fxg5 {[%emt 0:00:04]} 13. hxg5 {[%emt 0:00:09]} Rf4 $1 {[%emt 0:00:18]} 14. b4 {[%emt 0:00:51]} Na6 {[%emt 0:00:22]} 15. Rb1 {[%emt 0:00:50]} Nxg5 {[%emt 0:00:26] The position is equal.} 16. c5 $1 {[%emt 0:01:14]} dxc5 $1 {[%emt 0:00:13]} 17. bxc5 {[%emt 0:00:20][%cal Od5d6]} b6 $1 {[%emt 0:00:02]} 18. d6 {[%emt 0:00:16] [#] Black must now prevent Nd5.} Nxc5 $1 {[%emt 0:00:26][%cal Oc7c6] Strongly threatening ...c6!} 19. Bxc5 {[%emt 0:00:19]} bxc5 {[%emt 0:00:03]} 20. Qd5+ {[%emt 0:02:56]} Be6 {[%emt 0:00:07]} 21. dxc7 {[%emt 0:00:08]} Qf8 {[%emt 0:00:11]} (21... Bxd5 $2 {is the wrong capture.} 22. cxd8=B (22. cxd8=Q+ Rxd8 23. Nxd5 Rf7 $18) 22... Rxd8 23. Nxd5 $18) 22. Qxa8 {[%emt 0:00:14]} Qxa8 {[%emt 0:00:02]} ({Don't go for} 22... Nxf3+ $2 23. Nxf3 Qxa8 24. Rb8+ Rf8 25. Rxa8 Rxa8 26. Ng5 $18) 23. Rb8+ {[%emt 0:00:13]} Rf8 {[%emt 0:00:01]} 24. Rxa8 {[%emt 0:00:12]} Rxa8 {[%emt 0:00:01]} 25. Ba6 {[%emt 0:00:15] Prevents Rc8} Bc8 {[%emt 0:00:07]} 26. Bc4+ {[%emt 0:10:53]} Be6 {[%emt 0:00:19]} 27. Ba6 {[%emt 0:00:18]} Bc8 {[%emt 0:00:04]} 28. Bc4+ {[%emt 0:32:05]} Be6 {[%emt 0:00:04]} 29. Ba6 {[%emt 0:00:08]} Bc8 $1 {[%emt 0:00:03]} 30. Bb5 {[%emt 0:44:30] Weighted Error Value: White=0.04 (flawless) /Black=0.01 (flawless) .  Inaccurate:     	White=2     	---        OK:         	White=10    	Black=6      Best:        	White=2     	Black=6      Strong:       	White=1     	Black=5} 1/2-1/2

[Event "Mitropa Cup Open 2024"]
[Site "Apolda"]
[Date "2024.02.15"]
[Round "1.14"]
[White "Peyrer, Konstantin"]
[Black "Makkar, Rajat"]
[Result "1/2-1/2"]
[ECO "D30"]
[WhiteElo "2439"]
[BlackElo "2453"]
[Annotator "TA"]
[PlyCount "43"]
[EventDate "2024.02.15"]
[EventType "team-tourn"]
[EventCountry "GER"]
[SourceTitle "playchess.com"]
[Source "ChessBase"]
[SourceQuality "1"]
[WhiteTeam "Austria"]
[BlackTeam "France"]
[WhiteTeamCountry "AUT"]
[BlackTeamCountry "FRA"]
[TimeControl "40/5400+30:1800+30"]

{[%evp 20,43,20,20,29,18,28,0,13,9,0,0,0,0,-5,0,0,0,0,0,0,0,0,0,0,0]} 1. c4 {[%emt 0:00:10]} c6 {[%emt 0:02:13]} 2. Nf3 {[%emt 0:00:07]} d5 {[%emt 0:00:33]} 3. d4 {[%emt 0:00:08]} Nf6 {[%emt 0:01:15]} 4. e3 {[%emt 0:00:08]} e6 {[%emt 0:00:06]} 5. Nbd2 {[%emt 0:00:47]} Be7 {[%emt 0:00:08]} 6. Bd3 {[%emt 0:02:20]} Nbd7 {[%emt 0:01:39]} 7. O-O {[%emt 0:02:01]} O-O {[%emt 0:00:05]} 8. b3 {[%emt 0:00:07]} dxc4 {[%emt 0:00:17]} 9. bxc4 {[%emt 0:06:11]} c5 {[%emt 0:00:09]} 10. Bb2 {[%emt 0:00:04]} cxd4 {[%emt 0:01:34]} 11. exd4 {[%emt 0:00:35]} b6 {[%emt 0:00:09]} 12. Qe2 {[%emt 0:02:19]} Bb7 {[%emt 0:01:07]} 13. Rfd1 {[%emt 0:04:26]} Re8 {[%emt 0:04:09] The position is equal.} 14. Rac1 {[%emt 0:06:39]} Qc7 {[%emt 0:04:48]} 15. Ne4 {[%emt 0:14:05]} Qf4 {[%emt 0:17:16][%cal Rf6e4]} 16. Nxf6+ {[%emt 0:02:37]} Bxf6 {[%emt 0:01:10]} 17. Qe3 {[%emt 0:00:23]} Qg4 {[%emt 0:11:53]} 18. h3 {[%emt 0:04:29]} Qh5 {[%emt 0:00:57]} 19. Be2 {[%emt 0:00:08] Strongly threatening Ne5.} Qg6 {[%emt 0:00:31][%cal Oe6e5]} 20. Bd3 {[%emt 0:00:50]} Qh5 {[%emt 0:00:07]} 21. Be2 {[%emt 0:02:06] Black must now prevent Ne5.} Qg6 {[%emt 0:04:07][%cal Oe6e5]} 22. Bd3 {[%emt 0:01:34] A rather calm draw.   Weighted Error Value: White=0.04 (flawless) /Black=0.01 (flawless) .  Inaccurate:     	White=1     	---        OK:         	White=4     	Black=6} 1/2-1/2

[Event "Mitropa Cup Open 2024"]
[Site "Apolda"]
[Date "2024.02.15"]
[Round "1.15"]
[White "Velten, Paul"]
[Black "Morgunov, Marc"]
[Result "1/2-1/2"]
[ECO "E11"]
[WhiteElo "2470"]
[BlackElo "2368"]
[Annotator "TA"]
[PlyCount "91"]
[EventDate "2024.02.15"]
[EventType "team-tourn"]
[EventCountry "GER"]
[SourceTitle "playchess.com"]
[Source "ChessBase"]
[SourceQuality "1"]
[WhiteTeam "France"]
[BlackTeam "Austria"]
[WhiteTeamCountry "FRA"]
[BlackTeamCountry "AUT"]
[TimeControl "40/5400+30:1800+30"]

{[%evp 21,91,14,14,0,0,-3,41,19,25,20,22,36,30,30,35,20,22,20,76,75,72,29,45,6,9,18,19,-15,-15,-18,-11,-16,42,40,136,16,25,0,233,10,8,14,19,0,35,20,25,20,23,24,16,17,40,21,25,24,28,8,8,0,0,0,0,0,0,0,0,0,0,0,0,0]} 1. d4 {[%emt 0:00:37]} Nf6 {[%emt 0:00:26]} 2. c4 {[%emt 0:00:27]} e6 {[%emt 0:00:39]} 3. Nf3 {[%emt 0:00:27]} Bb4+ {[%emt 0:01:02]} 4. Nbd2 {[%emt 0:01:50]} Be7 {[%emt 0:01:35]} 5. e4 {[%emt 0:04:46][%cal Be2e4,Be4e5][%mdl 32]} d5 {[%emt 0:01:15]} 6. e5 {[%emt 0:13:51]} Nfd7 {[%emt 0:00:24]} 7. cxd5 {[%emt 0:04:06]} exd5 {[%emt 0:00:12]} 8. Bd3 {[%emt 0:13:12]} c5 {[%emt 0:01:17]} 9. O-O {[%emt 0:03:09]} Nc6 {[%emt 0:01:50]} 10. Re1 {[%emt 0:02:30]} O-O {[%emt 0:05:04]} 11. a3 {[%emt 0:06:27]} a5 {[%emt 0:01:50][%cal Ba7a5,Ba5a4][%mdl 32]} 12. Bb1 {[%emt 0:08:07]} a4 {[%emt 0:17:20]} 13. Bc2 {[%emt 0:08:00]} Qa5 {[%emt 0:10:22] [#]} 14. b4 $1 {[%emt 0:02:44] White is slightly better.} cxb4 {[%emt 0:05:54]} 15. axb4 {[%emt 0:00:21]} Qb6 {[%emt 0:01:06]} 16. Nf1 {[%emt 0:01:01]} Nxb4 {[%emt 0:10:08]} 17. Bxa4 {[%emt 0:00:38]} Qg6 {[%emt 0:02:11] Prevents Bg5.} 18. Ba3 {[%emt 0:13:33]} Nb6 {[%emt 0:03:10]} 19. Bb3 {[%emt 0:00:48]} Bd7 {[%emt 0:18:29]} (19... Nc4 $11 {keeps the balance.} 20. Bxc4 dxc4) 20. Ne3 $16 {[%emt 0:01:12]} Rfc8 {[%emt 0:00:52]} 21. Qb1 {[%emt 0:02:28]} (21. Qd2 $5 Rxa3 22. Rxa3 $14) 21... Bb5 {[%emt 0:04:16]} 22. Nf5 {[%emt 0:06:10]} Bf8 {[%emt 0:00:32] [#] Threatens to win with ...Bd3.} 23. Nd6 $1 {[%emt 0:01:29]} Bxd6 {[%emt 0:03:24]} 24. Qxg6 {[%emt 0:00:07]} (24. exd6 {seems wilder.} Qxd6 25. Ne5 f6 26. Ng4) 24... hxg6 {[%emt 0:00:06]} 25. exd6 {[%emt 0:00:03]} Nd3 {[%emt 0:04:24] A dynamic duo of knights.} ({Don't go for} 25... Nc2 $2 26. Bxc2 Rxc2 27. Rab1 $18) 26. Reb1 {[%emt 0:00:31]} Ra6 {[%emt 0:00:18]} (26... Bd7 $11) 27. Bd1 $36 {[%emt 0:00:26][%mdl 2048] White is pushing.} Bc4 {[%emt 0:04:47] [#]} (27... Bc6 $14) 28. Ne5 {[%emt 0:00:11]} (28. Rxb6 $1 $16 Rxb6 29. d7) 28... Rca8 $11 {[%emt 0:00:27]} 29. h4 {[%emt 0:01:30][%cal Od1f3]} f6 $2 {[%emt 0:00:58]} (29... Nxe5 $1 $11 30. dxe5 Bd3) 30. Nxd3 $2 {[%emt 0:00:45]} ({Only move:} 30. Nxg6 $18 Kf7 31. Bh5) 30... Bxd3 {[%emt 0:00:06]} 31. Rb3 {[%emt 0:00:20]} Bf5 {[%emt 0:00:22] Strongly threatening ...Nc4.} (31... Bc4 $5 32. Rb2 Bd3 $11) 32. g4 {[%emt 0:00:37]} Be6 {[%emt 0:00:42] aiming for ...Nc4.} (32... Bc8 $5 33. Be2 Nc4 $11) 33. Rab1 {[%emt 0:01:22]} Nc4 {[%emt 0:00:13] Prevents Re3.} 34. Bb4 {[%emt 0:00:35]} Nxd6 {[%emt 0:00:48]} 35. Bxd6 {[%emt 0:00:10]} Rxd6 {[%emt 0:00:03]} 36. Rxb7 {[%emt 0:00:03]} Rad8 {[%emt 0:00:59]} 37. g5 {[%emt 0:00:23]} R6d7 {[%emt 0:00:41]} 38. Bc2 {[%emt 0:00:55]} Kf7 {[%emt 0:00:19]} 39. Rxd7+ {[%emt 0:01:00]} Rxd7 {[%emt 0:00:06][%mdl 4096] Endgame. KRB-KRB. The position is equal.} 40. Rb6 {[%emt 0:00:06]} Rc7 {[%emt 0:00:28]} 41. Bb3 {[%emt 0:33:18]} Rc3 {[%emt 0:02:03]} 42. Rb7+ {[%emt 0:00:00]} Kf8 {[%emt 0:01:06]} 43. Rb8+ {[%emt 0:00:00]} Ke7 {[%emt 0:00:38]} 44. Rb7+ {[%emt 0:00:00]} Kf8 {[%emt 0:00:04]} 45. Rb8+ {[%emt 0:00:00]} Ke7 {[%emt 0:00:06]} 46. Rb7+ {[%emt 0:00:00] Weighted Error Value: White=0.21 (precise) /Black=0.23 (precise) .  Loses game:     	---       	Black=1      Missed win:     	White=1     	---        Mistake:       	White=1     	Black=3      Inaccurate:     	White=3     	Black=2      OK:         	White=12    	Black=17     Best:        	---       	Black=1} 1/2-1/2